[Event "GER-ch Youth U14W 2020"]
[Site "Willingen"]
[Date "2020.10.22"]
[Round "4.2"]
[White "Pohle, Saskia"]
[Black "Wörz, Ann-Sophie"]
[Result "1-0"]
[ECO "B07"]
[WhiteElo "1749"]
[BlackElo "1473"]
[Annotator "NA RC"]
[PlyCount "101"]
[EventDate "2020.10.20"]
[EventType "swiss"]
[EventRounds "7"]
[EventCountry "GER"]
[SourceTitle "playchess.com"]
[Source "ChessBase"]
[SourceQuality "1"]
[TimeControl "40/5400+30:1800+30"]

1. e4 {[%emt 0:00:00]} d6 {[%emt 0:00:00]} 2. d4 {[%emt 0:00:00]} Nf6 {[%emt 0:00:00]} 3. Nc3 {[%emt 0:00:00]} c6 {[%emt 0:00:00]} 4. Nf3 {[%emt 0:00:05]} g6 {[%emt 0:00:05]} 5. Be2 {[%emt 0:01:48]} Bg7 {[%emt 0:00:48]} 6. O-O {[%emt 0:00:29]} Nbd7 {[%emt 0:01:46]} 7. e5 {[%emt 0:04:41]} dxe5 {[%emt 0:01:30]} 8. dxe5 {[%emt 0:00:08]} Ng4 {[%emt 0:03:24]} 9. e6 {[%emt 0:01:11]} Nde5 {[%emt 0:06:25]} 10. Qxd8+ {[%emt 0:03:23]} Kxd8 {[%emt 0:00:02]} 11. Rd1+ {[%emt 0:00:46]} Ke8 {[%emt 0:00:24]} 12. exf7+ {[%emt 0:06:05]} Nxf7 {[%emt 0:01:05]} 13. Ne4 {[%emt 0:03:05]} Bf5 {[%emt 0:03:15]} 14. Nc5 {[%emt 0:03:11]} Nd6 {[%emt 0:13:09]} 15. Ng5 {[%emt 0:01:19]} Nf6 {[%emt 0:05:57]} 16. Bf4 {[%emt 0:04:43]} Nd5 {[%emt 0:02:26]} 17. Bxd6 {[%emt 0:12:31]} exd6 {[%emt 0:02:14]} 18. Nxb7 {[%emt 0:00:14]} Bxc2 {[%emt 0:05:47]} 19. Rd2 {[%emt 0:02:28]} Ba4 {[%emt 0:07:53]} 20. Nxd6+ {[%emt 0:06:54]} Ke7 {[%emt 0:01:54]} 21. Nc4 {[%emt 0:05:44]} Bh6 {[%emt 0:01:44]} 22. h4 {[%emt 0:01:44]} Bb5 {[%emt 0:03:46]} 23. Re1 {[%emt 0:02:22]} Bxg5 {[%emt 0:06:54]} 24. hxg5 {[%emt 0:00:22]} Rhe8 {[%emt 0:03:06]} 25. Bf3+ {[%emt 0:01:37]} Kf8 {[%emt 0:01:09]} 26. Rxe8+ {[%emt 0:00:12]} Rxe8 {[%emt 0:00:14]} 27. Nd6 {[%emt 0:00:13]} Re1+ {[%emt 0:00:49]} 28. Kh2 {[%emt 0:00:15]} Nf4 {[%emt 0:03:11]} 29. Nxb5 {[%emt 0:00:47]} cxb5 {[%emt 0:00:02]} 30. Bc6 {[%emt 0:02:55]} Re7 {[%emt 0:04:11]} 31. Bxb5 {[%emt 0:01:07]} Re5 {[%emt 0:02:31]} 32. Rd8+ {[%emt 0:02:20]} Kf7 {[%emt 0:01:16]} 33. Bc4+ {[%emt 0:01:37]} Ke7 {[%emt 0:00:20]} 34. Rh8 {[%emt 0:02:13]} Rxg5 {[%emt 0:04:57]} 35. Rxh7+ {[%emt 0:00:19]} Kf6 {[%emt 0:02:54]} 36. g3 {[%emt 0:00:45]} Rh5+ {[%emt 0:03:18]} 37. Rxh5 {[%emt 0:00:06]} Nxh5 {[%emt 0:00:09]} 38. b4 {[%emt 0:00:20]} Ng7 {[%emt 0:00:31]} 39. a4 {[%emt 0:00:11]} Ne8 40. a5 {[%emt 0:01:06]} Nd6 {[%emt 0:01:55]} 41. Bd3 {[%emt 0:30:14]} g5 {[%emt 0:30:55]} 42. b5 {[%emt 0:00:36]} Nc8 {[%emt 0:00:01]} 43. Kh3 {[%emt 0:00:25]} Ne7 {[%emt 0:02:34]} 44. b6 {[%emt 0:00:58]} axb6 {[%emt 0:00:18]} 45. axb6 {[%emt 0:00:05]} Nc6 {[%emt 0:00:25]} 46. b7 {[%emt 0:00:05]} Ke5 {[%emt 0:01:07]} 47. Kg4 {[%emt 0:00:17]} Kf6 {[%emt 0:00:07]} 48. Kh5 {[%emt 0:00:06]} Nb8 {[%emt 0:00:40]} 49. g4 {[%emt 0:00:06]} Nd7 {[%emt 0:03:31]} 50. Bb5 {[%emt 0:00:15]} Nb8 {[%emt 0:01:13]} 51. f3 {[%emt 0:00:06]} 1-0

[Event "GER-ch Youth U14W 2020"]
[Site "Willingen"]
[Date "2020.10.22"]
[Round "4.3"]
[White "Sereda, Yaroslava"]
[Black "Zöllner, Bente"]
[Result "1-0"]
[ECO "A00"]
[WhiteElo "1756"]
[BlackElo "1630"]
[Annotator "NA RC"]
[PlyCount "59"]
[EventDate "2020.10.20"]
[EventType "swiss"]
[EventRounds "7"]
[EventCountry "GER"]
[SourceTitle "playchess.com"]
[Source "ChessBase"]
[SourceQuality "1"]
[TimeControl "40/5400+30:1800+30"]

1. g3 {[%emt 0:00:00]} Nf6 {[%emt 0:00:00]} 2. Bg2 {[%emt 0:01:41]} c5 {[%emt 0:00:42]} 3. Nf3 {[%emt 0:00:52]} Nc6 {[%emt 0:01:18]} 4. d4 {[%emt 0:00:56]} cxd4 {[%emt 0:01:33]} 5. Nxd4 {[%emt 0:00:12]} g6 {[%emt 0:01:39]} 6. O-O {[%emt 0:08:20]} Bg7 {[%emt 0:02:25]} 7. c4 {[%emt 0:02:03]} O-O {[%emt 0:02:29]} 8. Nxc6 {[%emt 0:06:50]} dxc6 {[%emt 0:03:04]} 9. Qc2 {[%emt 0:03:12]} Bf5 {[%emt 0:04:05]} 10. e4 {[%emt 0:03:06]} Be6 {[%emt 0:02:33]} 11. Rd1 {[%emt 0:05:19]} Qc8 {[%emt 0:04:58]} 12. Be3 {[%emt 0:03:44]} Bh3 {[%emt 0:05:28]} 13. Nc3 {[%emt 0:04:42]} Bxg2 {[%emt 0:04:22]} 14. Kxg2 {[%emt 0:00:09]} Qe6 {[%emt 0:03:09]} 15. c5 {[%emt 0:02:11]} Rfd8 {[%emt 0:02:42]} 16. f3 {[%emt 0:02:37]} Rd7 {[%emt 0:06:58]} 17. Rxd7 {[%emt 0:04:31]} Qxd7 {[%emt 0:01:50]} 18. Rd1 {[%emt 0:00:50]} Qc7 {[%emt 0:00:29]} 19. Qb3 {[%emt 0:07:23]} Nd7 {[%emt 0:04:20]} 20. f4 {[%emt 0:09:49]} e6 {[%emt 0:03:25]} 21. e5 {[%emt 0:04:06]} Kf8 {[%emt 0:03:00]} 22. Ne4 {[%emt 0:02:22]} b6 {[%emt 0:06:07]} 23. Rd6 {[%emt 0:04:06]} Ke8 {[%emt 0:01:55]} 24. Ng5 {[%emt 0:20:48]} Bf8 {[%emt 0:10:32]} 25. Nxf7 {[%emt 0:01:14]} Nxc5 {[%emt 0:09:29]} 26. Bxc5 {[%emt 0:00:34]} bxc5 {[%emt 0:02:37]} 27. Qxe6+ {[%emt 0:00:13]} Qe7 {[%emt 0:00:44]} 28. Ng5 {[%emt 0:01:30]} h6 {[%emt 0:04:48]} 29. Qxg6+ {[%emt 0:00:11]} Qf7 {[%emt 0:00:44]} 30. Qxf7# {[%emt 0:00:08]} 1-0

[Event "GER-ch Youth U14W 2020"]
[Site "Willingen"]
[Date "2020.10.22"]
[Round "4.4"]
[White "Werner, Rosalie"]
[Black "Deák-Sala, Emília"]
[Result "1-0"]
[ECO "B39"]
[WhiteElo "1688"]
[BlackElo "1641"]
[Annotator "NA RC"]
[PlyCount "95"]
[EventDate "2020.10.20"]
[EventType "swiss"]
[EventRounds "7"]
[EventCountry "GER"]
[SourceTitle "playchess.com"]
[Source "ChessBase"]
[SourceQuality "1"]
[TimeControl "40/5400+30:1800+30"]

1. e4 {[%emt 0:00:00]} c5 {[%emt 0:00:00]} 2. Nf3 {[%emt 0:00:00]} Nc6 {[%emt 0:00:00]} 3. d4 {[%emt 0:00:00]} cxd4 {[%emt 0:00:00]} 4. Nxd4 {[%emt 0:00:00]} g6 {[%emt 0:00:00]} 5. c4 {[%emt 0:00:00]} Bg7 {[%emt 0:00:00]} 6. Be3 {[%emt 0:00:06]} Nf6 {[%emt 0:00:00]} 7. Nc3 {[%emt 0:00:11]} Ng4 {[%emt 0:00:11]} 8. Qxg4 {[%emt 0:00:13]} Nxd4 {[%emt 0:00:05]} 9. Qd1 {[%emt 0:00:12]} Ne6 {[%emt 0:00:04]} 10. Qd2 {[%emt 0:01:20]} d6 {[%emt 0:00:58]} 11. Be2 {[%emt 0:01:03]} Bd7 {[%emt 0:00:12]} 12. O-O {[%emt 0:01:42]} O-O {[%emt 0:00:12]} 13. f3 {[%emt 0:01:38]} Bc6 {[%emt 0:00:38]} 14. Rac1 {[%emt 0:02:13]} Nc7 {[%emt 0:04:45]} 15. Rfd1 {[%emt 0:03:03]} Qe8 {[%emt 0:05:31]} 16. b3 {[%emt 0:07:16]} b5 {[%emt 0:05:36]} 17. cxb5 {[%emt 0:08:24]} Nxb5 {[%emt 0:02:59]} 18. Bxb5 {[%emt 0:09:44]} Bxb5 {[%emt 0:03:31]} 19. Nd5 {[%emt 0:02:26]} Qd8 {[%emt 0:04:35]} 20. Nc7 {[%emt 0:08:28]} Rb8 {[%emt 0:00:19]} 21. Bxa7 {[%emt 0:08:22]} Rb7 {[%emt 0:00:10]} 22. Nxb5 {[%emt 0:00:11]} Rxb5 {[%emt 0:00:01]} 23. Bd4 {[%emt 0:02:01]} f6 {[%emt 0:02:10]} 24. Qc3 {[%emt 0:09:13]} Qb8 {[%emt 0:02:12]} 25. Qc4+ {[%emt 0:06:07]} Kh8 {[%emt 0:00:32]} 26. Qe6 {[%emt 0:02:05]} Qb7 {[%emt 0:01:24]} 27. Rc2 {[%emt 0:01:05]} Rb4 {[%emt 0:04:05]} 28. Be3 {[%emt 0:09:40]} Rb5 {[%emt 0:03:49]} 29. Qc4 {[%emt 0:03:47]} Ra5 {[%emt 0:10:42]} 30. Rd5 {[%emt 0:05:18]} Ra6 {[%emt 0:03:12]} 31. Rb5 {[%emt 0:01:08]} Qa8 {[%emt 0:00:51]} 32. a4 {[%emt 0:00:16]} Qe8 {[%emt 0:02:56]} 33. Rb6 {[%emt 0:01:50]} Ra8 {[%emt 0:01:00]} 34. Rb7 {[%emt 0:02:15]} f5 {[%emt 0:04:33]} 35. Bd4 {[%emt 0:01:48]} e5 {[%emt 0:01:18]} 36. Qc7 {[%emt 0:01:18]} Rg8 {[%emt 0:00:10]} 37. Be3 {[%emt 0:00:47]} f4 {[%emt 0:01:11]} 38. Bb6 {[%emt 0:00:53]} Qe6 {[%emt 0:00:27]} 39. Qc4 {[%emt 0:00:35]} Qf6 {[%emt 0:01:17]} 40. a5 {[%emt 0:01:14]} Qh4 {[%emt 0:01:19]} 41. Bf2 {[%emt 0:30:43]} Qf6 {[%emt 0:32:28]} 42. b4 {[%emt 0:00:00]} Rgd8 {[%emt 0:00:00]} 43. Qd5 {[%emt 0:00:00]} Rdc8 {[%emt 0:00:00]} 44. Rbc7 {[%emt 0:00:00]} Rd8 {[%emt 0:00:00]} 45. R2c6 {[%emt 0:00:00]} Rab8 {[%emt 0:00:00]} 46. b5 {[%emt 0:00:00]} Bf8 {[%emt 0:00:00]} 47. Rf7 {[%emt 0:00:00]} Qg5 {[%emt 0:00:00]} 48. Rcc7 {[%emt 0:00:00]} 1-0

[Event "GER-ch Youth U14W 2020"]
[Site "Willingen"]
[Date "2020.10.22"]
[Round "4.6"]
[White "Wagner, Margarethe"]
[Black "Schulz, Hannah"]
[Result "1-0"]
[ECO "B36"]
[WhiteElo "1804"]
[BlackElo "1589"]
[Annotator "NA RC"]
[PlyCount "61"]
[EventDate "2020.10.20"]
[EventType "swiss"]
[EventRounds "7"]
[EventCountry "GER"]
[SourceTitle "playchess.com"]
[Source "ChessBase"]
[SourceQuality "1"]
[TimeControl "40/5400+30:1800+30"]

{[%evp 19,54,38,38,32767,32767,15,32767,6,19,0,52,0,109,37,46,9,54,4,39,15,19,0,0,0,102,118,161,176,163,32,205,205,533,591,591,32767,187]} 1. e4 {[%emt 0:00:00]} c5 {[%emt 0:00:00]} 2. Nf3 {[%emt 0:00:00]} Nc6 {[%emt 0:00:00]} 3. d4 {[%emt 0:00:00]} cxd4 {[%emt 0:00:00]} 4. Nxd4 {[%emt 0:00:00]} g6 {[%emt 0:00:00]} 5. c4 {[%emt 0:00:00]} d6 {[%emt 0:00:05]} 6. Be2 {[%emt 0:00:22]} Nf6 {[%emt 0:00:19]} 7. Nc3 {[%emt 0:00:20]} Nxd4 {[%emt 0:00:26]} 8. Qxd4 {[%emt 0:00:34]} Bg7 {[%emt 0:00:10]} 9. Be3 {[%emt 0:00:40]} O-O {[%emt 0:00:16]} 10. Qd2 {[%emt 0:00:33]} Be6 {[%emt 0:01:16]} 11. O-O {[%emt 0:02:54]} Qa5 {[%emt 0:01:08]} 12. f3 {[%emt 0:02:59]} Rfc8 {[%emt 0:01:11]} 13. b3 {[%emt 0:05:38]} a6 {[%emt 0:20:36]} 14. Rac1 {[%emt 0:05:10]} Bd7 {[%emt 0:02:42] B36: Sicilian: Maroczy Bind: Gurgenidze System.} 15. f4 {[%emt 0:07:28] [#]} Kf8 $146 {[%emt 0:09:31]} ({Predecessor:} 15... b5 $11 {remains equal.} 16. e5 b4 17. exf6 bxc3 18. Qxc3 Qxc3 19. Rxc3 Bxf6 20. Rd3 Bf5 21. Rdd1 a5 22. Bf3 Rab8 23. g4 Be6 24. Rd3 a4 {½-½ (24) Sulypa,O (2434)-Motylev,A (2532) Lvov 1999}) 16. h3 {[%emt 0:09:53]} (16. Bd4 $16) 16... Bc6 {[%emt 0:02:24]} 17. Bd3 {[%emt 0:04:02]} b5 {[%emt 0:02:30]} 18. e5 {[%emt 0:09:07]} dxe5 {[%emt 0:01:15]} 19. fxe5 {[%emt 0:01:03]} Nd7 {[%emt 0:02:19]} 20. Qf2 {[%emt 0:14:53]} Nxe5 {[%emt 0:03:40]} 21. Bd4 {[%emt 0:00:29]} Be8 {[%emt 0:00:56]} (21... Kg8 $11) 22. Be4 {[%emt 0:03:15]} Nc6 {[%emt 0:02:31]} (22... Rab8 $1 $14) 23. Bxg7+ {[%emt 0:02:52]} Kxg7 {[%emt 0:00:20]} 24. Bd5 $2 {[%emt 0:04:36]} ({Less strong is} 24. Bxc6 Rxc6 25. Nd5 bxc4 $11) (24. Nd5 $18) 24... f6 $2 {[%emt 0:04:14]} (24... bxc4 $1 $14 25. Bxf7 Bxf7 26. Qxf7+ {[%mdl 64] Double Attack} Kh8) 25. Ne4 {[%emt 0:03:12]} f5 $18 {[%emt 0:02:25]} (25... Bd7 26. Nc5 (26. Nxf6 Rf8 $16 {[%mdl 64] Pin}) 26... Ra7) 26. Ng5 {[%emt 0:02:47]} Bd7 {[%emt 0:01:45]} 27. Qb2+ {[%emt 0:00:41]} e5 {[%emt 0:00:27]} 28. Bxc6 {[%emt 0:01:12]} Bxc6 {[%emt 0:00:18]} 29. Qxe5+ {[%emt 0:00:15]} Kf8 {[%emt 0:00:19]} 30. Qf6+ {[%emt 0:01:01]} Ke8 {[%emt 0:00:09]} 31. Qf7+ {[%emt 0:00:15]} 1-0

[Event "GER-ch Youth U14W 2020"]
[Site "Willingen"]
[Date "2020.10.22"]
[Round "4.7"]
[White "Ulrich, Helena Irene"]
[Black "Voigt, Anastasia"]
[Result "0-1"]
[ECO "C97"]
[WhiteElo "1610"]
[BlackElo "1562"]
[Annotator "NA RC"]
[PlyCount "62"]
[EventDate "2020.10.20"]
[EventType "swiss"]
[EventRounds "7"]
[EventCountry "GER"]
[SourceTitle "playchess.com"]
[Source "ChessBase"]
[SourceQuality "1"]
[TimeControl "40/5400+30:1800+30"]

1. e4 {[%emt 0:00:00]} e5 {[%emt 0:00:00]} 2. Nf3 {[%emt 0:00:00]} Nc6 {[%emt 0:00:00]} 3. Bb5 {[%emt 0:00:00]} a6 {[%emt 0:00:00]} 4. Ba4 {[%emt 0:00:00]} Nf6 {[%emt 0:00:35]} 5. O-O {[%emt 0:00:11]} b5 {[%emt 0:00:40]} 6. Bb3 {[%emt 0:00:08]} Be7 {[%emt 0:00:29]} 7. Re1 {[%emt 0:00:18]} O-O {[%emt 0:02:39]} 8. c3 {[%emt 0:01:46]} d6 {[%emt 0:00:23]} 9. h3 {[%emt 0:00:18]} Na5 {[%emt 0:01:26]} 10. Bc2 {[%emt 0:00:10]} c5 {[%emt 0:00:22]} 11. d4 {[%emt 0:00:43]} Qc7 {[%emt 0:00:35]} 12. d5 {[%emt 0:01:21]} Bd7 {[%emt 0:11:04]} 13. b3 {[%emt 0:01:13]} Nb7 {[%emt 0:02:37]} 14. c4 {[%emt 0:02:24]} a5 {[%emt 0:06:15]} 15. a4 {[%emt 0:06:16]} b4 {[%emt 0:08:49]} 16. Nbd2 {[%emt 0:02:25]} g6 {[%emt 0:01:44]} 17. Nf1 {[%emt 0:05:02]} Nh5 {[%emt 0:08:00]} 18. N1h2 {[%emt 0:33:34]} Ng7 {[%emt 0:15:15]} 19. g4 {[%emt 0:08:41]} Qc8 {[%emt 0:06:11]} 20. Nd2 {[%emt 0:02:56]} f5 {[%emt 0:02:09]} 21. f3 {[%emt 0:05:01]} fxg4 {[%emt 0:03:31]} 22. fxg4 {[%emt 0:00:54]} h5 {[%emt 0:02:49]} 23. Rf1 {[%emt 0:02:25]} hxg4 {[%emt 0:01:22]} 24. hxg4 {[%emt 0:00:25]} Bg5 {[%emt 0:00:52]} 25. Rxf8+ {[%emt 0:01:06]} Qxf8 {[%emt 0:01:14]} 26. Qf3 {[%emt 0:02:18]} Bf4 {[%emt 0:03:01]} 27. Bd1 {[%emt 0:01:17]} Qf6 {[%emt 0:02:56]} 28. Ndf1 {[%emt 0:04:18]} Rf8 {[%emt 0:01:04]} 29. Qg2 {[%emt 0:04:02]} Qh4 {[%emt 0:02:04]} 30. Be3 {[%emt 0:02:08]} Bxh2+ {[%emt 0:06:58]} 31. Qxh2 {[%emt 0:01:00]} Rxf1+ {[%emt 0:00:19]} 0-1

[Event "GER-ch Youth U14W 2020"]
[Site "Willingen"]
[Date "2020.10.22"]
[Round "4.8"]
[White "Foos, Vanessa"]
[Black "Buchholz, Maja"]
[Result "0-1"]
[ECO "C01"]
[WhiteElo "1328"]
[BlackElo "1628"]
[Annotator "NA RC"]
[PlyCount "56"]
[EventDate "2020.10.20"]
[EventType "swiss"]
[EventRounds "7"]
[EventCountry "GER"]
[SourceTitle "playchess.com"]
[Source "ChessBase"]
[SourceQuality "1"]
[TimeControl "40/5400+30:1800+30"]

1. e4 {[%emt 0:00:00]} e6 {[%emt 0:00:00]} 2. d4 {[%emt 0:00:00]} d5 {[%emt 0:00:00]} 3. exd5 {[%emt 0:00:00]} exd5 {[%emt 0:00:00]} 4. c4 {[%emt 0:00:00]} Nf6 {[%emt 0:00:00]} 5. Nc3 {[%emt 0:00:30]} Be7 {[%emt 0:00:19]} 6. Nf3 {[%emt 0:01:16]} O-O {[%emt 0:00:22]} 7. Be3 {[%emt 0:01:13]} Nc6 {[%emt 0:00:53]} 8. Bd3 {[%emt 0:05:38]} dxc4 {[%emt 0:00:37]} 9. Bxc4 {[%emt 0:00:14]} Nb4 {[%emt 0:00:46]} 10. O-O {[%emt 0:11:38]} Nbd5 {[%emt 0:02:07]} 11. Re1 {[%emt 0:07:17]} Bg4 {[%emt 0:02:55]} 12. h3 {[%emt 0:02:46]} Bh5 {[%emt 0:02:28]} 13. Bg5 {[%emt 0:03:27]} c6 {[%emt 0:12:02]} 14. Be2 {[%emt 0:25:51]} Qa5 {[%emt 0:07:29]} 15. Qb3 {[%emt 0:08:55]} Bb4 {[%emt 0:16:42]} 16. Rac1 {[%emt 0:06:49]} Rfe8 {[%emt 0:09:33]} 17. Ne5 {[%emt 0:05:19]} Bxe2 {[%emt 0:08:11]} 18. Rxe2 {[%emt 0:00:25]} Bxc3 19. bxc3 {[%emt 0:00:10]} Qa6 {[%emt 0:15:21]} 20. Re3 {[%emt 0:05:23]} Nxe3 {[%emt 0:08:36]} 21. Qxf7+ {[%emt 0:00:09]} Kh8 {[%emt 0:00:05]} 22. Bxf6 {[%emt 0:00:22]} Nf5 {[%emt 0:01:18]} 23. g4 {[%emt 0:00:27]} Rf8 {[%emt 0:02:12]} 24. Qb3 {[%emt 0:05:31]} Nh6 {[%emt 0:01:31]} 25. Bg5 {[%emt 0:02:16]} Qe2 {[%emt 0:04:45]} 26. Qxb7 {[%emt 0:04:05]} Qxf2+ {[%emt 0:00:21]} 27. Kh1 {[%emt 0:00:06]} Rab8 {[%emt 0:00:29]} 28. Qxc6 {[%emt 0:03:34]} Rb2 {[%emt 0:00:13]} 0-1

[Event "GER-ch Youth U14W 2020"]
[Site "Willingen"]
[Date "2020.10.22"]
[Round "4.9"]
[White "Fischer, Darja"]
[Black "Becker, Linda"]
[Result "0-1"]
[ECO "E00"]
[WhiteElo "1598"]
[BlackElo "1767"]
[Annotator "NA RC"]
[PlyCount "62"]
[EventDate "2020.10.20"]
[EventType "swiss"]
[EventRounds "7"]
[EventCountry "GER"]
[SourceTitle "playchess.com"]
[Source "ChessBase"]
[SourceQuality "1"]
[TimeControl "40/5400+30:1800+30"]

1. d4 {[%emt 0:00:00]} e6 {[%emt 0:00:00]} 2. c4 {[%emt 0:00:00]} Bb4+ {[%emt 0:00:00]} 3. Nc3 {[%emt 0:00:02]} b6 {[%emt 0:00:07]} 4. e4 {[%emt 0:01:48]} Bb7 {[%emt 0:01:56]} 5. Qc2 {[%emt 0:04:25]} Nc6 {[%emt 0:07:12]} 6. Nf3 {[%emt 0:01:50]} Bxc3+ {[%emt 0:03:58]} 7. bxc3 {[%emt 0:00:20]} d6 {[%emt 0:01:06]} 8. Bd3 {[%emt 0:01:45]} Nge7 {[%emt 0:02:04]} 9. Be3 {[%emt 0:02:39]} Qd7 {[%emt 0:02:42]} 10. O-O {[%emt 0:02:42]} O-O {[%emt 0:02:12]} 11. Rad1 {[%emt 0:02:58]} f5 {[%emt 0:05:53]} 12. exf5 {[%emt 0:03:52]} exf5 {[%emt 0:02:19]} 13. d5 {[%emt 0:10:19]} Ne5 {[%emt 0:04:30]} 14. Nd4 {[%emt 0:01:41]} f4 {[%emt 0:07:17]} 15. Bc1 {[%emt 0:08:01]} f3 {[%emt 0:02:57]} 16. Ne6 {[%emt 0:02:41]} fxg2 {[%emt 0:01:51]} 17. Bxh7+ {[%emt 0:05:45]} Kh8 {[%emt 0:00:37]} 18. Rfe1 {[%emt 0:04:26]} Qxe6 {[%emt 0:12:37]} 19. Re3 {[%emt 0:04:41]} Qd7 {[%emt 0:05:34]} 20. Qe4 {[%emt 0:01:37]} Qg4 {[%emt 0:01:40]} 21. Qxg4 {[%emt 0:02:45]} Nxg4 {[%emt 0:00:11]} 22. Rxe7 {[%emt 0:03:06]} Kxh7 {[%emt 0:01:04]} 23. Rd4 {[%emt 0:01:37]} Nxf2 {[%emt 0:03:39]} 24. Be3 {[%emt 0:01:25]} Nh3+ {[%emt 0:06:27]} 25. Kxg2 {[%emt 0:00:13]} Bc8 {[%emt 0:00:11]} 26. Rxc7 {[%emt 0:02:24]} Rf6 {[%emt 0:01:57]} 27. Rh4+ {[%emt 0:03:09]} Kg8 {[%emt 0:00:24]} 28. Re7 {[%emt 0:00:34]} Rg6+ {[%emt 0:02:22]} 29. Kf1 {[%emt 0:00:18]} Bf5 {[%emt 0:02:32]} 30. Rh5 {[%emt 0:00:47]} Bd3+ {[%emt 0:00:49]} 31. Ke1 {[%emt 0:00:49]} Ng1 {[%emt 0:00:29]} 0-1

[Event "GER-ch Youth U14W 2020"]
[Site "Willingen"]
[Date "2020.10.22"]
[Round "4.10"]
[White "Roncea, Andrea-Alexandra"]
[Black "Pikki, Daria"]
[Result "0-1"]
[ECO "C50"]
[WhiteElo "1644"]
[BlackElo "1545"]
[Annotator "NA RC"]
[PlyCount "82"]
[EventDate "2020.10.20"]
[EventType "swiss"]
[EventRounds "7"]
[EventCountry "GER"]
[SourceTitle "playchess.com"]
[Source "ChessBase"]
[SourceQuality "1"]
[TimeControl "40/5400+30:1800+30"]

1. e4 {[%emt 0:00:00]} e5 {[%emt 0:00:00]} 2. Nf3 {[%emt 0:00:00]} Nc6 {[%emt 0:00:00]} 3. Bc4 {[%emt 0:00:00]} Bc5 {[%emt 0:00:00]} 4. d3 {[%emt 0:00:00]} Nf6 {[%emt 0:00:17]} 5. Bb3 {[%emt 0:00:05]} d6 {[%emt 0:00:47]} 6. c3 {[%emt 0:00:19]} h6 {[%emt 0:01:24]} 7. Nbd2 {[%emt 0:02:52]} a6 {[%emt 0:02:39]} 8. O-O {[%emt 0:01:34]} Bg4 {[%emt 0:02:27]} 9. Re1 {[%emt 0:06:27]} Qd7 {[%emt 0:06:05]} 10. Nf1 {[%emt 0:03:05]} Ba7 {[%emt 0:03:22]} 11. Ba4 {[%emt 0:08:27]} O-O-O {[%emt 0:08:51]} 12. b4 {[%emt 0:01:41]} Ng8 {[%emt 0:06:09]} 13. b5 {[%emt 0:04:07]} axb5 {[%emt 0:02:56]} 14. Bxb5 {[%emt 0:00:32]} Nge7 {[%emt 0:02:11]} 15. Rb1 {[%emt 0:07:55]} f5 {[%emt 0:15:26]} 16. Be3 {[%emt 0:10:25]} fxe4 {[%emt 0:05:40]} 17. Bxa7 {[%emt 0:21:34]} exf3 {[%emt 0:02:44]} 18. Qa4 {[%emt 0:06:37]} Qe6 {[%emt 0:07:45]} 19. d4 {[%emt 0:06:20]} Bf5 {[%emt 0:03:19]} 20. d5 {[%emt 0:02:33]} Qxd5 {[%emt 0:02:26]} 21. Ne3 {[%emt 0:03:16]} Qe4 {[%emt 0:04:15]} 22. c4 {[%emt 0:01:41]} Qf4 {[%emt 0:01:58]} 23. Bxc6 {[%emt 0:03:37]} bxc6 {[%emt 0:01:43]} 24. Qa6+ {[%emt 0:02:23]} Kd7 {[%emt 0:00:18]} 25. Rb7 {[%emt 0:00:24]} Rc8 {[%emt 0:03:36]} 26. Bb6 {[%emt 0:01:14]} Be4 {[%emt 0:06:59]} 27. Qa7 {[%emt 0:01:31]} Ke8 {[%emt 0:02:04]} 28. Rxc7 {[%emt 0:01:00]} Rxc7 {[%emt 0:00:34]} 29. Qxc7 {[%emt 0:00:02]} Rf8 {[%emt 0:01:04]} 30. Qxd6 {[%emt 0:02:01]} fxg2 {[%emt 0:02:21]} 31. Nd1 {[%emt 0:02:16]} Kf7 {[%emt 0:01:41]} 32. Bc5 {[%emt 0:00:40]} Ng6 {[%emt 0:00:45]} 33. Qd7+ {[%emt 0:00:20]} Kg8 {[%emt 0:00:54]} 34. Bxf8 {[%emt 0:00:07]} Nxf8 {[%emt 0:00:09]} 35. Qd8 {[%emt 0:01:05]} Kh7 {[%emt 0:00:20]} 36. Re3 {[%emt 0:00:50]} Ng6 {[%emt 0:01:03]} 37. Rh3 {[%emt 0:00:55]} Qg4 {[%emt 0:01:12]} 38. Re3 {[%emt 0:00:33]} Nf4 {[%emt 0:01:15]} 39. Qd2 {[%emt 0:00:29]} Bf3 {[%emt 0:01:46]} 40. Rxf3 {[%emt 0:00:26]} Qxf3 {[%emt 0:00:10]} 41. Qc2+ {[%emt 0:03:25]} e4 {[%emt 0:00:26]} 0-1